bitfinex/quotes_SOLUSD_20240905
["timestamp","ask_amount","ask_price","bid_price","bid_amount"]
[1725511695051,7.4621,134.01,133.96,7.4646]
[1725511695247,7.4621,134.01,133.95,7.4654]
[1725511695557,6.5295,134.02,133.98,7.4637]
[1725511695863,15.00547501,134.02,133.97,18.6607]
[1725511696044,15.00547501,134.02,133.97,26.1248]
[1725511696242,13.9912,134.02,133.97,26.1248]
[1725511696444,15.00547501,134.02,133.97,26.1248]
[1725511697939,13.9912,134.02,133.97,26.1248]
[1725511698140,15.00547501,134.02,133.97,26.1248]
[1725511698432,13.9912,134.02,133.97,26.1248]
[1725511698758,6.0359,134.06,133.99,18.657]
[1725511699351,6.0359,134.06,133.98,30.0]
[1725511699352,6.0359,134.06,134.01,18.654]
[1725511699741,6.0359,134.06,134.01,48.654]
[1725511699940,21.2386,134.11,134.01,48.654]
[1725511700259,7.4583,134.08,134.03,7.4609]
[1725511700563,1.01427501,134.1,134.05,7.4594]
[1725511701055,8.47157501,134.1,134.05,7.4594]
[1725511701656,28.6952,134.11,134.06,7.4593]
[1725511702361,8.47147501,134.1,134.05,7.4598]
[1725511702571,7.47147501,134.1,134.05,7.4598]
[1725511704345,1.01427501,134.1,134.06,7.4592]
[1725511704743,28.6952,134.11,134.06,7.4592]
[1725511705350,20.0,134.1,134.02,2.81618697]
[1725511705552,1.01427501,134.09,134.01,48.6543]
[1725511706042,7.4593,134.07,134.02,7.4615]
[1725511706241,1.01427501,134.06,134.01,48.6543]
[1725511706555,1.01427501,134.09,134.01,18.6543]
[1725511706955,7.4594,134.06,134.01,26.1159]
[1725511707447,1.01427501,134.09,134.01,26.1159]
[1725511707448,8.47197501,134.09,134.04,7.4604]
[1725511707647,8.47197501,134.09,133.99,2.81877217]
[1725511707648,20.0,134.1,134.03,18.6516]
[1725511707849,7.4576,134.09,134.04,7.4603]
[1725511708249,8.47187501,134.09,134.04,7.4603]
[1725511708878,21.2386,134.11,134.04,7.4603]
[1725511709060,0.8634582,134.13,134.06,18.6482]
[1725511709254,0.8634582,134.13,134.09,7.4572]
[1725511710963,0.8634582,134.13,134.09,37.4572]
[1725511711468,9.33323321,134.13,134.09,30.0]
[1725511711773,7.4563,134.12,134.09,30.0]
[1725511711976,1.87773321,134.13,134.09,30.0]
[1725511711977,9.33323321,134.13,134.09,30.0]
[1725511712173,9.33323321,134.13,134.08,26.1025]
[1725511712363,7.4561,134.12,134.08,18.6445]
[1725511712552,1.87773321,134.13,134.08,26.1026]
[1725511712553,9.33323321,134.13,134.08,26.1026]
[1725511713047,9.33323321,134.13,134.09,7.4576]
[1725511713253,9.33323321,134.13,134.08,26.1027]
[1725511713465,9.33323321,134.13,133.0,17.90516429]
[1725511713466,37.22697501,134.12,133.98,37.318]
[1725511713663,37.22697501,134.12,134.0,48.6562]
[1725511713664,18.6436,134.1,134.0,48.6562]
[1725511713968,7.4609,134.04,134.0,30.0]
[1725511714375,7.46,134.05,134.0,37.4626]
[1725511714679,7.4617,134.02,133.97,18.6602]
[1725511714854,1.01427501,134.04,133.98,30.0]
[1725511715051,7.4622,134.01,133.95,7.4653]
[1725511715277,1.01427501,134.0,133.95,7.4653]
[1725511715567,7.4622,134.01,133.96,7.4649]
[1725511715774,6.5564,134.03,133.98,7.4635]
[1725511716653,14.0174,134.03,133.98,7.4635]
[1725511718253,6.5564,134.03,133.98,7.4635]
[1725511718472,14.0174,134.03,133.98,7.4635]
[1725511719562,6.5564,134.03,133.99,7.4631]
[1725511721073,6.5564,134.03,134.0,7.4623]
[1725511721261,23.9032,134.06,134.01,7.4621]
[1725511721460,23.9032,134.06,134.01,37.4621]
[1725511721778,23.9032,134.06,134.01,30.0]
[1725511721963,7.4599,134.05,134.01,30.0]
[1725511722773,16.4434,134.06,134.02,7.4615]
[1725511723073,24.91697501,134.06,134.02,7.4615]
[1725511723280,24.91697501,134.06,134.01,7.462]
[1725511723648,24.91697501,134.06,134.02,7.4615]
[1725511723649,16.4434,134.06,134.02,7.4615]
[1725511724169,7.4583,134.08,134.03,7.4609]
[1725511724771,15.6363,134.1,134.02,37.3074]
[1725511724957,15.6363,134.1,134.03,45.0]
[1725511725159,7.1835582,134.13,134.03,45.0]
[1725511725357,8.19783321,134.13,134.03,75.0]
[1725511725771,7.4561,134.12,134.07,7.4583]
[1725511728082,15.65323321,134.13,134.08,7.4579]
[1725511728280,21.01427501,134.12,134.03,30.0]
[1725511728484,7.4594,134.06,134.02,18.6532]
[1725511728783,7.4589,134.07,134.02,18.6532]
[1725511728955,7.4589,134.07,134.02,26.1145]
[1725511729161,7.4593,134.06,134.02,26.1145]
[1725511729678,1.01427501,134.1,134.03,7.4609]
[1725511729878,21.01427501,134.1,134.03,7.4609]
[1725511730093,21.01427501,134.1,134.02,18.6532]
[1725511730094,7.4582,134.08,134.04,7.4604]
[1725511731379,7.4582,134.08,134.03,7.4608]
[1725511732187,21.01427501,134.1,134.04,7.46]
[1725511732378,21.01427501,134.09,134.04,7.46]
[1725511732584,7.459,134.07,134.02,26.1147]
[1725511732768,7.459,134.07,134.03,30.0]
[1725511733371,7.459,134.07,134.02,26.1147]
[1725511734490,7.459,134.07,134.03,30.0]
[1725511734789,1.01427501,134.12,134.04,18.6505]
[1725511734990,1.01427501,134.12,134.04,26.1108]
[1725511735377,1.01427501,134.12,134.05,37.4598]
[1725511735579,1.01427501,134.12,134.06,7.4591]
[1725511735781,7.4566,134.11,134.06,7.4591]
[1725511736385,7.4566,134.11,134.06,37.4591]
[1725511736689,7.4561,134.12,134.06,48.6477]
[1725511736887,7.1835582,134.13,134.08,18.6446]
[1725511737066,7.1835582,134.13,134.09,7.4576]
[1725511737472,1.01427501,134.12,134.09,30.0]
[1725511737671,7.4566,134.11,134.09,30.0]
[1725511737878,14.6390582,134.13,134.09,30.0]
[1725511738090,14.6390582,134.13,134.09,37.4576]
[1725511738780,14.6390582,134.13,134.09,30.0]
[1725511739380,7.456,134.12,134.09,30.0]
[1725511740302,8.19783321,134.13,134.09,30.0]
[1725511740303,7.4571,134.1,134.09,30.0]
[1725511741495,7.4571,134.1,134.06,7.4592]
[1725511741689,7.4571,134.1,134.07,30.0]
[1725511742377,7.4567,134.11,134.07,37.4587]
[1725511742671,8.47147501,134.1,134.07,30.0]
[1725511742871,1.01427501,134.09,134.07,30.0]
[1725511743285,21.01427501,134.12,134.07,30.0]
[1725511743579,7.4582,134.08,134.07,30.0]
[1725511744110,7.4576,134.1,134.04,26.1107]
[1725511744283,7.4576,134.09,134.05,30.0]
[1725511744899,1.01427501,134.1,134.05,30.0]
[1725511745109,7.4577,134.09,134.04,7.4603]
[1725511745479,1.01427501,134.12,133.99,104.43453852]
[1725511745679,1.01427501,134.12,134.01,45.02]
[1725511746004,1.01427501,134.12,134.02,65.0]
[1725511746180,8.47037501,134.12,134.07,7.4583]
[1725511746380,7.4561,134.12,134.07,7.4583]
[1725511746582,7.4561,134.12,134.08,7.458]
[1725511746803,7.1835582,134.13,134.09,7.4575]
[1725511746980,0.8634582,134.13,134.09,7.4575]
[1725511747681,0.8634582,134.13,134.1,7.457]
[1725511748976,0.8634582,134.13,134.1,37.457]
[1725511753606,0.8634582,134.13,134.11,18.6408]
[1725511753812,0.8634582,134.13,134.12,7.456]
[1725511754193,0.8634582,134.13,134.11,56.0972]
[1725511754614,0.8634582,134.13,134.12,7.456]
[1725511754820,0.8634582,134.13,134.12,37.456]
[1725511754991,0.8634582,134.13,134.12,119.736]
[1725511755311,0.8634582,134.13,134.12,207.6891]
[1725511756817,0.8634582,134.13,134.12,88.7596]
[1725511756992,0.8634582,134.13,134.12,37.456]
[1725511757996,0.8634582,134.13,134.12,30.0]
[1725511758196,8.3188582,134.13,134.12,30.0]
[1725511758523,7.4572,134.1,134.05,26.1088]
[1725511758696,8.47077501,134.12,134.06,7.4592]
[1725511758892,20.8634582,134.13,134.07,7.4587]
[1725511759121,0.8634582,134.13,134.07,7.4587]
[1725511759416,8.3193582,134.13,134.07,7.4587]
[1725511759599,8.47067501,134.12,134.06,7.4593]
[1725511759800,7.4566,134.11,134.06,7.4593]
[1725511760416,7.456,134.12,134.07,7.4585]
[1725511761797,17.42827501,134.11,134.05,18.6494]
[1725511761997,8.47157501,134.1,134.05,18.6494]
[1725511762520,16.414,134.11,134.06,7.4592]
[1725511763018,16.414,134.11,134.07,7.4587]
[1725511763390,23.8705,134.11,134.05,18.6494]
[1725511763594,16.414,134.11,134.05,18.6494]
[1725511765316,24.88497501,134.11,134.05,18.6494]
[1725511765819,16.414,134.11,134.07,7.4587]
[1725511765999,24.88487501,134.11,134.06,7.4593]
[1725511766199,7.4572,134.1,134.05,26.1092]
[1725511766504,1.01427501,134.1,133.98,111.4901]
[1725511766706,6.3208,134.09,134.03,7.4608]
[1725511767022,6.3208,134.09,134.02,18.6536]
[1725511767023,1.01427501,134.08,134.02,18.6536]
[1725511767200,7.4595,134.06,134.02,18.6536]
[1725511767922,7.4588,134.07,134.02,26.1149]
[1725511768419,7.4594,134.06,134.02,18.6536]
[1725511770007,13.7784,134.09,134.04,7.4602]
[1725511770413,6.3208,134.09,134.05,7.4598]
[1725511771912,8.47247501,134.08,134.04,7.4604]
[1725511772118,1.01427501,134.07,134.03,7.4609]
[1725511773023,7.4582,134.08,134.03,7.4609]
[1725511773320,8.47247501,134.08,134.03,7.4609]
[1725511773502,1.01427501,134.1,134.05,7.4598]
[1725511774318,8.47177501,134.1,134.04,26.1107]
[1725511775212,15.572,134.08,133.99,12.17847541]
[1725511775528,7.4656,133.95,133.93,2.82564924]
[1725511775823,22.3199,133.98,133.91,18.6692]
[1725511775824,1.01427501,133.97,133.91,18.6692]
[1725511776022,20.0,133.97,133.92,7.467]
[1725511776221,21.01427501,133.97,133.92,7.467]
[1725511776428,1.01427501,133.97,133.92,7.467]
[1725511776737,96.30120069,134.07,133.91,18.6692]
[1725511776738,6.0407,134.02,133.91,18.6692]
[1725511776896,21.01427501,134.01,133.91,18.6692]
[1725511778226,7.4627,134.0,133.94,7.4654]
[1725511779223,1.01427501,134.06,133.96,6.6349]
[1725511779520,6.286,134.08,133.97,45.0]
[1725511779521,1.01427501,134.07,133.97,45.0]
[1725511780306,7.4593,134.06,134.0,7.4626]
[1725511781922,1.01427501,134.05,134.0,7.4626]
[1725511782316,7.4593,134.06,134.01,7.462]
[1725511783511,1.01427501,134.07,134.01,7.462]
[1725511783512,7.4589,134.07,134.01,7.462]
[1725511784725,7.4577,134.09,134.03,7.4604]
[1725511784953,8.47267501,134.08,134.02,26.1143]
[1725511785152,7.4584,134.08,134.02,26.1143]
[1725511785642,8.47317501,134.07,134.02,18.6529]
[1725511785939,7.4589,134.07,134.02,18.6529]
[1725511786339,8.47377501,134.06,134.0,7.4625]
[1725511786522,7.4595,134.06,134.01,7.4616]
[1725511789928,1.01427501,134.1,133.97,79.09961175]
[1725511790131,7.4581,134.09,134.04,7.46]
[1725511790341,7.4581,134.09,134.03,26.1126]
[1725511790644,21.01427501,134.08,134.0,18.6563]
[1725511790847,1.01427501,134.07,134.0,18.6563]
[1725511791534,7.4592,134.07,134.01,8.95395829]
[1725511791738,7.4592,134.07,134.02,1.49191518]
[1725511792638,7.4592,134.07,134.03,1.49180386]
[1725511793642,7.4582,134.08,134.03,8.95270386]
[1725511793833,17.1085582,134.13,134.08,7.4581]
[1725511793834,0.8634582,134.13,134.08,7.4581]
[1725511794028,0.8634582,134.13,134.12,7.456]
[1725511794342,17.3807582,134.26,134.2,7.4514]
[1725511794540,0.8634582,134.26,134.19,18.6302]
[1725511794728,0.8634582,134.26,134.25,7.4487]
[1725511795530,0.8634582,134.26,134.25,52.4487]
[1725511796252,0.8634582,134.26,134.25,7.4487]
[1725511797037,0.8634582,134.26,134.25,52.4487]
[1725511797339,0.8634582,134.26,134.25,7.4487]
[1725511797545,0.8634582,134.26,134.25,52.4487]
[1725511797746,0.8634582,134.26,134.25,7.4487]
[1725511798649,0.8634582,134.26,134.25,37.4487]
[1725511799037,0.8634582,134.26,134.25,136.52831175]
[1725511799239,0.8634582,134.26,134.25,204.05831175]
[1725511799755,8.45647501,134.37,134.31,7.4451]
[1725511800160,1.01427501,134.37,134.32,7.4447]
[1725511800361,1.87773321,134.39,134.32,7.4447]
[1725511800532,1.87773321,134.39,134.32,37.4447]
[1725511800733,7.4421,134.37,134.32,30.0]
[1725511800933,8.45727501,134.36,134.32,30.0]
[1725511801132,7.4422,134.37,134.32,30.0]
[1725511801437,21.01427501,134.36,134.32,30.0]
[1725511801955,20.0,134.36,134.32,30.0]
[1725511802460,20.0,134.36,134.32,37.4448]
[1725511802759,1.01427501,134.36,134.32,30.0]
[1725511803737,20.8634582,134.39,134.32,30.0]
[1725511803738,1.01427501,134.38,134.32,30.0]
[1725511804138,20.8634582,134.39,134.32,30.0]
[1725511804662,7.4443,134.33,134.32,30.0]
[1725511804868,27.4443,134.33,134.32,30.0]
[1725511805643,0.8634582,134.39,134.32,30.0]
[1725511805841,7.4426,134.36,134.32,30.0]
[1725511806242,0.8634582,134.39,134.32,37.4443]
[1725511806243,7.4415,134.38,134.32,37.4443]
[1725511806458,7.4415,134.38,134.33,30.0]
[1725511806662,0.8634582,134.39,134.33,30.0]
[1725511806663,7.4421,134.37,134.33,30.0]
[1725511806960,0.8634582,134.39,134.33,30.0]
[1725511807144,7.4421,134.37,134.33,30.0]
[1725511807345,7.4416,134.38,134.33,30.0]
[1725511808956,7.4422,134.37,134.33,30.0]
[1725511809257,7.4416,134.38,134.33,30.0]
[1725511810180,7.4421,134.37,134.33,30.0]
[1725511811053,0.8634582,134.39,134.37,7.4416]
[1725511811261,0.8634582,134.39,134.37,37.4416]
[1725511811445,0.8634582,134.39,134.38,7.4415]
[1725511811647,0.8634582,134.39,134.38,52.4415]
[1725511812264,0.8634582,134.39,134.38,82.4415]
[1725511813163,0.8634582,134.39,134.38,30.0]
[1725511813659,0.8634582,134.39,134.38,37.4415]
[1725511814862,0.8634582,134.39,134.38,82.4415]
[1725511815659,0.8634582,134.39,134.38,37.4415]
[1725511820851,0.8634582,134.39,134.38,30.0]
[1725511821169,8.3044582,134.39,134.38,30.0]
[1725511821374,0.8634582,134.39,134.38,30.0]
[1725511822667,0.8634582,134.39,134.37,30.0]
[1725511823048,0.8634582,134.39,134.38,45.0]
[1725511823372,0.8634582,134.39,134.38,52.4415]
[1725511823756,0.8634582,134.39,134.38,82.4415]
[1725511825659,0.8634582,134.39,134.38,97.8336]
[1725511825854,0.8634582,134.39,134.38,37.4415]
[1725511827979,0.8634582,134.39,134.38,82.4415]
[1725511830182,22.7436,134.5,134.39,37.2045]
[1725511830183,7.4364,134.48,134.39,37.2045]
[1725511830379,6.4498,134.52,134.39,37.2045]
[1725511830380,6.4498,134.52,134.46,7.437]
[1725511830581,7.4362,134.48,134.44,18.5947]
[1725511830792,7.4362,134.48,134.43,7.4387]
[1725511831081,7.4366,134.47,134.42,7.4388]
[1725511831275,7.4366,134.47,134.44,30.0]
[1725511831669,7.4371,134.46,134.44,30.0]
[1725511832184,7.4366,134.47,134.44,30.0]
[1725511832858,6.4498,134.52,134.44,30.0]
[1725511833082,7.4372,134.46,134.44,30.0]
[1725511833876,7.4377,134.45,134.44,30.0]
[1725511835489,7.4372,134.46,134.44,30.0]
[1725511839871,7.4366,134.47,134.44,30.0]
[1725511840067,7.4377,134.45,134.44,30.0]
[1725511840285,7.4372,134.46,134.44,30.0]
[1725511840774,6.4498,134.52,134.44,30.0]
[1725511840966,20.0,134.51,134.44,30.0]
[1725511841167,7.4367,134.47,134.44,30.0]
[1725511841783,7.4377,134.45,134.44,30.0]
[1725511842378,20.0,134.51,134.36,22.5362]
[1725511842379,7.439,134.43,134.38,7.4414]
[1725511842572,7.439,134.43,134.39,37.4409]
[1725511842777,7.439,134.43,134.39,30.0]
[1725511844992,7.439,134.43,134.39,37.441]
[1725511845590,20.0,134.51,134.39,56.0429]
[1725511846101,7.4386,134.44,134.4,7.4401]
[1725511846399,7.4386,134.44,134.41,30.0]
[1725511847567,20.0,134.51,134.41,37.4398]
[1725511847568,7.4377,134.45,134.41,37.4398]
[1725511849091,20.0,134.51,134.42,7.4393]
[1725511849274,7.437,134.47,134.42,37.4393]
[1725511849477,7.4372,134.46,134.42,37.4393]
[1725511849782,6.4498,134.52,134.42,37.4393]
[1725511849783,6.4498,134.52,134.43,18.5965]
[1725511850395,6.4498,134.52,134.43,30.0]
[1725511850600,7.4372,134.46,134.43,30.0]
[1725511851695,7.4367,134.47,134.43,30.0]
[1725511852095,6.4498,134.52,134.43,30.0]
[1725511852281,7.4361,134.48,134.43,37.4387]
[1725511852477,7.4367,134.47,134.43,30.0]
[1725511852897,7.4374,134.46,134.43,30.0]
[1725511854999,7.4378,134.45,134.43,30.0]
[1725511855221,7.4382,134.44,134.43,30.0]
[1725511855990,7.4394,134.42,134.37,7.4416]
[1725511856301,7.4394,134.42,134.39,30.0]
[1725511857687,17.31396516,134.52,134.39,30.0]
[1725511857879,6.4498,134.52,134.41,7.4396]
[1725511858203,6.4498,134.52,134.42,7.4389]
[1725511858910,6.4498,134.52,134.43,37.4387]
[1725511859291,20.0,134.51,134.43,37.4387]
[1725511861403,7.4368,134.47,134.43,37.4387]
[1725511861720,7.4361,134.48,134.43,37.4387]
[1725511862297,17.4486582,134.53,134.44,24.9867]
[1725511862505,17.4486582,134.53,134.47,7.4365]
[1725511862506,7.4342,134.52,134.47,7.4365]
[1725511862902,7.4344,134.51,134.46,7.437]
[1725511863396,0.8634582,134.53,134.49,7.4354]
[1725511863593,0.8634582,134.53,134.48,7.436]
[1725511863594,8.2967582,134.53,134.48,7.436]
[1725511863797,0.8634582,134.53,134.47,30.0]
[1725511864094,7.436,134.48,134.44,24.9871]
[1725511864481,7.436,134.48,134.45,30.0]
[1725511865609,0.8634582,134.53,134.45,30.0]
[1725511865910,7.4371,134.46,134.45,30.0]
[1725511866714,7.438,134.45,134.4,22.219]
[1725511867013,7.438,134.45,134.42,30.0]
[1725511867304,11.7291983,134.53,134.42,30.0]
[1725511867305,7.4372,134.46,134.42,30.0]
[1725511867698,7.4372,134.46,134.43,0.83999669]
[1725511867884,7.4372,134.46,134.42,30.0]
[1725511868084,6.45990154,134.53,134.42,30.0]
[1725511868085,7.4367,134.47,134.42,37.4392]
[1725511868607,7.436,134.48,134.43,7.4385]
[1725511869583,0.8634582,134.53,134.44,7.438]
[1725511869809,7.4361,134.48,134.43,7.4387]
[1725511870005,0.8634582,134.53,134.42,18.5974]
[1725511870006,7.4356,134.49,134.42,18.5974]
[1725511870192,7.4353,134.5,134.45,7.4376]
[1725511870618,0.8634582,134.53,134.43,59.7039]
[1725511870814,0.8634582,134.53,134.44,45.0]
[1725511870991,0.8634582,134.53,134.48,18.5893]
[1725511871315,0.8634582,134.53,134.49,7.4354]
[1725511871494,0.8634582,134.53,134.46,7.437]
[1725511871693,7.4345,134.51,134.46,7.4371]
[1725511872317,7.4349,134.5,134.46,7.4371]
[1725511872614,7.4349,134.5,134.45,28.9777]
[1725511873204,0.8634582,134.53,134.46,7.437]
[1725511873205,7.4345,134.51,134.46,7.437]
[1725511873398,7.4339,134.52,134.47,7.4365]
[1725511874410,7.4345,134.51,134.47,7.4365]
[1725511875216,0.8634582,134.53,134.46,18.5917]
[1725511875217,8.2971582,134.53,134.46,18.5917]
[1725511875415,8.2971582,134.53,134.47,30.0]
[1725511875593,0.8634582,134.53,134.49,7.4354]
[1725511876298,3.14377805,134.61,134.49,7.4354]
[1725511876299,7.4284,134.62,134.52,45.02]
[1725511876498,17.1962582,134.66,134.57,18.5774]
[1725511876819,17.1962582,134.66,134.57,7.4309]
[1725511877114,16.1962582,134.66,134.54,18.5814]
[1725511877514,16.1962582,134.66,134.5,22.4778]
[1725511877739,16.1962582,134.66,134.51,37.4343]
[1725511877912,16.1962582,134.66,134.51,30.0]
[1725511878094,16.1962582,134.66,134.51,37.4343]
[1725511878294,16.1962582,134.66,134.52,26.0179]
[1725511879023,20.0,134.65,134.52,26.0179]
[1725511879696,20.0,134.65,134.52,18.5842]
[1725511880898,20.0,134.65,134.5,22.4778]
[1725511881201,15.8914,134.62,134.5,22.4778]
[1725511881397,20.0,134.61,134.5,22.4778]
[1725511881897,7.4333,134.53,134.5,6.0022]
[1725511882094,7.436,134.49,134.46,6.6616]
[1725511882298,7.436,134.49,134.47,30.0]
[1725511882606,7.4363,134.48,134.46,6.6616]
[1725511882805,6.4208,134.57,134.42,6.6616]
[1725511883117,7.4366,134.47,134.42,14.1009]
[1725511883701,7.4366,134.47,134.42,6.6616]
[1725511883902,7.4366,134.47,134.43,0.64725115]
[1725511884309,15.4887,134.55,134.42,6.6616]
[1725511884502,20.0,134.54,134.42,6.6616]
[1725511885420,20.0,134.54,134.42,25.259]
[1725511885906,7.436,134.48,134.43,7.4387]
[1725511886527,20.0,134.54,134.43,7.4387]
[1725511886528,7.4366,134.47,134.43,7.4387]
[1725511886905,7.4366,134.47,134.42,32.6983]
[1725511887408,7.4377,134.45,134.42,6.6616]
[1725511887998,7.4366,134.47,134.42,14.1008]
[1725511888203,7.4359,134.49,134.44,7.4382]
[1725511888423,20.0,134.54,134.43,18.5961]
[1725511888424,7.4348,134.51,134.43,18.5961]
[1725511888605,7.4352,134.5,134.45,18.5934]
[1725511889008,7.436,134.48,134.43,7.4386]
[1725511889225,20.0,134.54,134.42,25.2595]
[1725511889610,7.4361,134.48,134.43,7.4387]
[1725511890015,7.4361,134.48,134.44,7.4381]
[1725511890522,7.4361,134.48,134.43,7.4387]
[1725511891219,20.0,134.54,134.42,25.2595]
[1725511891431,7.4371,134.46,134.42,25.2595]
[1725511891728,7.4367,134.47,134.42,32.6987]
[1725511893923,7.4365,134.48,134.43,7.4387]
[1725511894532,20.0,134.54,134.39,26.0431]
[1725511894533,6.0689,134.49,134.39,26.0431]
[1725511894729,20.0,134.48,134.39,26.0431]
[1725511895304,7.4388,134.43,134.39,26.0431]
[1725511895622,35.5148,134.48,134.37,6.5146]
[1725511895807,7.4403,134.41,134.37,6.5146]
[1725511896426,7.4415,134.38,134.37,6.5146]
[1725511896617,35.5148,134.48,134.36,15.956]
[1725511896618,7.441,134.4,134.36,15.956]
[1725511896821,7.4411,134.39,134.34,7.4436]
[1725511897024,7.4416,134.38,134.34,7.4436]
[1725511897226,7.4416,134.38,134.33,30.9016582]
[1725511897825,7.4416,134.38,134.33,23.4574582]
[1725511898004,7.4416,134.38,134.33,30.9017582]
[1725511898211,22.0934,134.4,134.33,0.8634582]
[1725511899110,7.4416,134.38,134.33,0.8634582]
[1725511899730,22.0934,134.4,134.33,0.8634582]
[1725511900816,20.0,134.39,134.33,0.8634582]
[1725511902832,7.4437,134.34,134.33,0.8634582]
[1725511903238,20.0,134.39,134.33,0.8634582]
[1725511903239,7.4432,134.35,134.33,0.8634582]
[1725511903707,20.0,134.39,134.33,0.8634582]
[1725511903913,23.1212,134.43,134.33,0.8634582]
[1725511904113,23.1212,134.43,134.35,7.4431]
[1725511904314,7.4405,134.4,134.35,7.4431]
[1725511905020,7.4411,134.39,134.34,7.4437]
[1725511905216,7.4417,134.38,134.33,26.9182582]
[1725511905418,7.4421,134.37,134.33,26.9182582]
[1725511905622,23.1212,134.43,134.33,0.8634582]
[1725511905623,7.4429,134.36,134.33,0.8634582]
[1725511906032,23.1212,134.43,134.33,0.8634582]
[1725511906216,7.4425,134.37,134.33,0.8634582]
[1725511907130,7.4428,134.36,134.33,0.8634582]
[1725511907317,83.1212,134.43,134.33,0.8634582]
[1725511907506,7.4437,134.34,134.33,0.8634582]
[1725511907925,45.0,134.42,134.33,0.8634582]
[1725511908125,7.442,134.38,134.33,0.8634582]
[1725511908321,7.4432,134.36,134.33,0.8634582]
[1725511909340,23.1212,134.43,134.33,0.8634582]
[1725511909547,20.0,134.42,134.33,0.8634582]
[1725511909839,7.4415,134.39,134.34,26.0521]
[1725511910013,7.4415,134.38,134.33,8.3076582]
[1725511910531,7.4421,134.37,134.33,8.3076582]
[1725511910711,7.4416,134.38,134.33,8.3076582]
[1725511911713,7.4421,134.37,134.33,8.3076582]
[1725511912226,7.441,134.39,134.33,19.4735582]
[1725511913117,7.441,134.39,134.34,7.4437]
[1725511913428,20.0,134.42,134.33,26.9178582]
[1725511913739,20.0,134.42,134.33,0.8634582]
[1725511913919,45.0,134.41,134.33,0.8634582]
[1725511914118,20.0,134.4,134.33,0.8634582]
[1725511917335,20.0,134.42,134.33,0.8634582]
[1725511917716,45.0,134.41,134.33,0.8634582]
[1725511917919,20.0,134.4,134.33,0.8634582]
[1725511918120,45.0,134.39,134.33,0.8634582]
[1725511918440,20.0,134.38,134.33,0.8634582]
[1725511919338,7.4437,134.34,134.33,0.8634582]
[1725511920920,7.4464,134.3,134.24,29.1513]
[1725511921233,20.0,134.34,134.26,7.4478]
[1725511921430,20.0,134.33,134.25,26.0697]
[1725511921633,7.4461,134.3,134.25,26.0697]
[1725511921834,7.4461,134.3,134.26,7.4482]
[1725511922041,7.4461,134.3,134.25,26.0697]
[1725511922445,20.0,134.33,134.25,18.6211]
[1725511922760,20.0,134.35,134.25,18.6211]
[1725511922946,20.0,134.35,134.27,18.6183]
[1725511923148,7.4453,134.32,134.27,26.0658]
[1725511923333,7.446,134.3,134.26,7.4481]
[1725511924529,15.2403,134.36,134.26,18.6199]
[1725511924752,22.6284,134.39,134.26,18.6199]
[1725511924925,7.4442,134.34,134.29,7.4464]
[1725511925621,7.4444,134.33,134.29,7.4464]
[1725511926442,22.6284,134.39,134.26,18.6199]
[1725511926443,7.4432,134.36,134.28,18.6167]
[1725511926647,27.4437,134.35,134.3,7.4458]
[1725511926840,7.4438,134.34,134.3,26.0598]
[1725511927040,7.4438,134.34,134.3,18.614]
[1725511927751,20.0,134.35,134.3,26.0599]
[1725511927752,27.4433,134.35,134.3,26.0599]
[1725511928251,7.4438,134.34,134.3,26.0599]
[1725511928624,22.6284,134.39,134.31,7.4452]